fUST/lending_fUST_20250707
["ID","MTS","AMOUNT","RATE_DAILY","PERIOD"]
[370012063,1751830239811,-578.94,0.00017136,2]
[370012065,1751830239819,-460.0,0.00017136,2]
[370012067,1751830239829,-503.36,0.00017136,2]
[370012068,1751830239838,-820.43,0.00017136,2]
[370012069,1751830239847,-311.25,0.00017137,2]
[370012070,1751830239856,-893.04,0.00017404,2]
[370012071,1751830239865,-1095.7,0.00017404,2]
[370012072,1751830239874,-1331.97,0.00017405,2]
[370012073,1751830239884,-460.0,0.00017405,2]
[370012074,1751830239893,-986.41,0.00017405,2]
[370012075,1751830239903,-1243.99,0.00017405,2]
[370012076,1751830239914,-1304.93,0.00017405,2]
[370012077,1751830239923,-733.26,0.00017405,2]
[370012079,1751830239932,-460.0,0.00017405,2]
[370012081,1751830239941,-830.23,0.00017405,2]
[370012082,1751830239950,-586.81,0.00017405,2]
[370012083,1751830239961,-460.0,0.00017405,2]
[370012084,1751830239972,-460.0,0.00017405,2]
[370012085,1751830239981,-460.0,0.00017406,2]
[370012086,1751830239990,-1248.3,0.00017406,2]
[370012087,1751830239999,-460.0,0.00017406,2]
[370012088,1751830240008,-460.0,0.00017406,2]
[370012089,1751830240018,-460.0,0.00017406,2]
[370012090,1751830240027,-460.0,0.00017406,2]
[370012091,1751830240036,-460.0,0.00017406,2]
[370012092,1751830240046,-460.0,0.00017406,2]
[370012093,1751830240055,-460.0,0.00017406,2]
[370012094,1751830240064,-460.0,0.00017406,2]
[370012095,1751830240073,-460.0,0.00017406,2]
[370012096,1751830240083,-460.0,0.00017406,2]
[370012097,1751830240092,-460.0,0.00017406,2]
[370012098,1751830240101,-460.0,0.00017406,2]
[370012099,1751830240110,-460.0,0.00017406,2]
[370012100,1751830240119,-460.0,0.00017407,2]
[370012101,1751830240129,-460.0,0.00017407,2]
[370012102,1751830240138,-557.94346504,0.00017407,2]
[370012104,1751830240147,-460.0,0.00017407,2]
[370012106,1751830240156,-2183.17,0.00017407,2]
[370012107,1751830240166,-639.16,0.00017407,2]
[370012108,1751830240174,-460.0,0.00017408,2]
[370012109,1751830240185,-460.0,0.00017408,2]
[370012110,1751830240194,-460.0,0.00017408,2]
[370012111,1751830240204,-504.1,0.00017408,2]
[370012112,1751830240213,-460.0,0.00017408,2]
[370012113,1751830240223,-460.0,0.00017408,2]
[370012114,1751830240236,-460.0,0.00017408,2]
[370012115,1751830240247,-2966.22,0.0001741,2]
[370012116,1751830240258,-815.64,0.0001741,2]
[370012117,1751830240267,-460.0,0.0001741,2]
[370012118,1751830240278,-831.68,0.0001741,2]
[370012119,1751830240287,-590.3,0.0001741,2]
[370012120,1751830240296,-460.0,0.0001741,2]
[370012121,1751830240306,-1160.21,0.0001741,2]
[370012122,1751830240315,-578.94,0.0001741,2]
[370012123,1751830240324,-536.39,0.0001741,2]
[370012124,1751830240333,-503.36,0.0001741,2]
[370012125,1751830240342,-820.43,0.0001741,2]
[370012126,1751830240351,-207.4,0.00017417,2]
[370012127,1751830240361,-151.0,0.00017417,2]
[370012128,1751830240369,-151.0,0.00017417,2]
[370012129,1751830240378,-151.0,0.00017417,2]
[370012130,1751830240388,-151.0,0.00017417,2]
[370012131,1751830240397,-151.0,0.00017417,2]
[370012132,1751830240407,-214.38131551,0.00017417,2]
[370012133,1751830240416,-5000.0,0.00017417,2]
[370012134,1751830240425,-893.04,0.00017678,2]
[370012135,1751830240434,-1095.7,0.00017678,2]
[370012136,1751830240444,-1331.97,0.00017679,2]
[370012137,1751830240453,-460.0,0.00017679,2]
[370012138,1751830240463,-986.41,0.00017679,2]
[370012139,1751830240472,-1243.99,0.00017679,2]
[370012140,1751830240482,-1304.93,0.00017679,2]
[370012141,1751830240491,-733.26,0.00017679,2]
[370012142,1751830240500,-460.0,0.00017679,2]
[370012143,1751830240510,-830.23,0.00017679,2]
[370012144,1751830240519,-586.81,0.00017679,2]
[370012145,1751830240528,-460.0,0.00017679,2]
[370012146,1751830240537,-549.81,0.00017679,2]
[370012147,1751830240547,-460.0,0.0001768,2]
[370012148,1751830240555,-1248.3,0.0001768,2]
[370012149,1751830240565,-460.0,0.0001768,2]
[370012150,1751830240574,-460.0,0.0001768,2]
[370012151,1751830240583,-425.34,0.0001768,2]
[370012152,1751830240592,-460.0,0.0001768,2]
[370012153,1751830240601,-460.0,0.0001768,2]
[370012154,1751830240611,-460.0,0.0001768,2]
[370012155,1751830240827,-460.0,0.0001768,2]
[370012156,1751830240837,-460.0,0.0001768,2]
[370012157,1751830240846,-460.0,0.0001768,2]
[370012158,1751830240856,-460.0,0.0001768,2]
[370012159,1751830240865,-460.0,0.0001768,2]
[370012160,1751830240874,-460.0,0.0001768,2]
[370012161,1751830240883,-460.0,0.00017681,2]
[370012162,1751830240892,-460.0,0.00017681,2]
[370012163,1751830240901,-460.0,0.00017681,2]
[370012164,1751830240911,-2183.17,0.00017681,2]
[370012165,1751830240920,-639.16,0.00017681,2]
[370012166,1751830240929,-500.0,0.00017681,2]
[370012167,1751830240939,-500.0,0.00017681,2]
[370012168,1751830240948,-500.0,0.00017681,2]
[370012169,1751830240958,-500.0,0.00017681,2]
[370012170,1751830240967,-500.0,0.00017681,2]
[370012171,1751830240977,-500.0,0.00017681,2]
[370012172,1751830240987,-310.15035255,0.00017681,2]
[370012173,1751830240996,-500.0,0.00017681,2]
[370012174,1751830241006,-500.0,0.00017681,2]
[370012175,1751830241015,-259.71479975,0.00017681,2]
[370012176,1751830241024,-500.0,0.00017681,2]
[370012177,1751830241033,-500.0,0.00017681,2]
[370012178,1751830241042,-500.0,0.00017681,2]
[370012179,1751830241052,-500.0,0.00017681,2]
[370012180,1751830241061,-500.0,0.00017681,2]
[370012181,1751830241071,-500.0,0.00017681,2]
[370012182,1751830241080,-500.0,0.00017681,2]
[370012183,1751830241090,-248.2880287,0.00017681,2]
[370012184,1751830241099,-500.0,0.00017681,2]
[370012185,1751830241108,-500.0,0.00017681,2]
[370012186,1751830241117,-500.0,0.00017681,2]
[370012187,1751830241126,-500.0,0.00017681,2]
[370012188,1751830241135,-460.0,0.00017682,2]
[370012189,1751830241145,-508.0,0.00017682,2]
[370012190,1751830241154,-460.0,0.00017682,2]
[370012191,1751830241163,-504.1,0.00017682,2]
[370012192,1751830241172,-266.33376492,0.00017682,2]
[370012193,1751830241181,-460.0,0.00017682,2]
[370012194,1751830241191,-460.0,0.00017682,2]
[370012195,1751830241201,-2966.22,0.00017684,2]
[370012196,1751830241211,-815.64,0.00017684,2]
[370012197,1751830241220,-460.0,0.00017684,2]
[370012198,1751830241230,-831.68,0.00017684,2]
[370012199,1751830241242,-590.3,0.00017684,2]
[370012200,1751830241252,-460.0,0.00017684,2]
[370012201,1751830241261,-1160.21,0.00017684,2]
[370012202,1751830241271,-578.94,0.00017684,2]
[370012203,1751830241280,-503.36,0.00017684,2]
[370012204,1751830241290,-820.43,0.00017684,2]
[370012205,1751830241299,-500.0,0.00017776,2]
[370012206,1751830241310,-497.06142972,0.00017912,2]
[370012207,1751830241320,-500.85840275,0.00017912,2]
[370012208,1751830241329,-503.20106831,0.00017912,2]
[370012209,1751830241338,-500.0,0.00017912,2]
[370012210,1751830241348,-893.04,0.00017952,2]
[370012211,1751830241357,-1095.7,0.00017952,2]
[370012212,1751830241366,-1331.97,0.00017953,2]
[370012213,1751830241375,-460.0,0.00017953,2]
[370012214,1751830241385,-986.41,0.00017953,2]
[370012215,1751830241395,-1243.99,0.00017953,2]
[370012216,1751830241406,-1304.93,0.00017953,2]
[370012217,1751830241416,-733.26,0.00017953,2]
[370012218,1751830241425,-460.0,0.00017953,2]
[370012219,1751830241434,-830.23,0.00017953,2]
[370012220,1751830241444,-586.81,0.00017953,2]
[370012221,1751830241453,-294.26,0.00017953,2]
[370012222,1751830241463,-460.0,0.00017954,2]
[370012223,1751830241472,-1248.3,0.00017954,2]
[370012224,1751830241481,-460.0,0.00017954,2]
[370012225,1751830241491,-157.86,0.00017954,2]
[370012226,1751830241500,-460.0,0.00017954,2]
[370012227,1751830241510,-460.0,0.00017954,2]
[370012228,1751830241519,-460.0,0.00017954,2]
[370012229,1751830241529,-460.0,0.00017954,2]
[370012230,1751830241538,-460.0,0.00017954,2]
[370012231,1751830241547,-460.0,0.00017954,2]
[370012232,1751830241556,-460.0,0.00017954,2]
[370012233,1751830241566,-460.0,0.00017954,2]
[370012234,1751830241575,-460.0,0.00017955,2]
[370012235,1751830241584,-305.31157068,0.00017955,2]
[370012236,1751830241604,-267.09860424,0.00017405,2]
[370012237,1751830241617,-192.90139576,0.00017405,2]
[370012238,1751830241627,-154.68842932,0.00017955,2]
[370012239,1751830241636,-460.0,0.00017955,2]
[370012240,1751830241647,-2183.17,0.00017955,2]
[370012241,1751830241657,-639.16,0.00017955,2]
[370012242,1751830241666,-460.0,0.00017956,2]
[370012243,1751830241676,-460.0,0.00017956,2]
[370012244,1751830241687,-250.08017492,0.00017956,2]
[370012245,1751830241740,-460.0,0.00017679,2]
[370012246,1751830241750,-460.0,0.00017953,2]
[370012247,1751830241759,-254.01982508,0.00017956,2]
[370012248,1751830241769,-460.0,0.00017956,2]
[370012249,1751830241779,-460.0,0.00017956,2]
[370012250,1751830241788,-2966.22,0.00017958,2]
[370012251,1751830241798,-815.64,0.00017958,2]
[370012252,1751830241809,-460.0,0.00017958,2]
[370012253,1751830241818,-831.68,0.00017958,2]
[370012254,1751830241827,-57.38599607,0.00017958,2]
[370012255,1751830241839,-320.17165751,0.00017958,2]
[370012256,1751830241851,-212.74234642,0.00017958,2]
[370012257,1751830241860,-460.0,0.00017958,2]
[370012258,1751830241870,-1160.21,0.00017958,2]
[370012259,1751830241879,-81.31938849,0.00017958,2]
[370012260,1751830241890,-497.62061151,0.00017958,2]
[370012261,1751830241899,-503.36,0.00017958,2]
[370012262,1751830241909,-820.43,0.00017958,2]
[370012263,1751830241918,-4762.43326501,0.00017965,2]
[370012264,1751830241938,-237.56673499,0.00017965,2]
[370012265,1751830241947,-437.08151457,0.00017973,2]
[370012302,1751830242992,-500.0,0.00017681,2]
[370012304,1751830243002,-550.0,0.00017681,2]
[370012305,1751830243012,-62.68967425,0.00017973,2]
[370012306,1751830243021,-500.0,0.00017973,2]
[370012307,1751830243031,-500.0,0.00017973,2]
[370012308,1751830243040,-500.0,0.00017973,2]
[370012309,1751830243050,-500.0,0.00017973,2]
[370012310,1751830243059,-500.0,0.00017973,2]
[370012311,1751830243069,-500.0,0.00017973,2]
[370012312,1751830243078,-500.0,0.00017973,2]
[370012313,1751830243088,-500.0,0.00017973,2]
[370012314,1751830243097,-500.0,0.00017973,2]
[370012316,1751830243107,-203.81835607,0.00017976,2]
[370012317,1751830243117,-9762.32583573,0.00018,2]
[370012318,1751830243129,-499.950315,0.00018,2]
[370012319,1751830243146,-11787.47966011,0.00018,2]
[370012323,1751830245994,-736.40236497,0.00018,2]
[370012324,1751830246052,-17926.46649506,0.00018,2]
[370012325,1751830314715,186.27275468,0.00016349,2]
[370012326,1751830348213,24900.0,0.00015858,2]
[370012327,1751830393002,183130.81159509,0.00016762,2]
[370012330,1751830543312,152.86376707,0.00016754,2]
[370012331,1751830555794,166.0,0.00016438,2]
[370012332,1751830751505,4272.54777731,0.00015855,2]
[370012333,1751830751534,1063.52768049,0.00015855,2]
[370012334,1751830753605,152.86376705,0.00016753,2]
[370012335,1751830943823,152.86376705,0.00016752,2]
[370012337,1751831095354,946.803391,0.00013699,2]
[370012338,1751831112129,500.0,0.00015876,2]
[370012339,1751831129131,152.86376705,0.0001675,2]
[370012359,1751831204341,-151.0,0.00016842,2]
[370012360,1751831204362,-0.66963396,0.00016848,2]
[370012361,1751831304581,152.86376705,0.00016749,2]
[370012362,1751831372937,203.63127912,0.00016748,2]
[370012380,1751831432143,-293.67692497,0.0001684,2]
[370012382,1751831432153,-290.9437591,0.00016847,2]
[370012391,1751831432248,-9.0562409,0.00016847,2]
[370012392,1751831432258,-300.0,0.00016847,2]
[370012393,1751831432268,-228.2937591,0.00016847,2]
[370012400,1751831438360,-71.7062409,0.00016847,2]
[370012401,1751831438370,-1200.0,0.00016847,2]
[370012402,1751831438380,-300.0,0.00016847,2]
[370012403,1751831438390,-300.0,0.00016847,2]
[370012404,1751831438399,-500.0,0.00016847,2]
[370012405,1751831438409,-500.0,0.00016847,2]
[370012406,1751831438419,-500.0,0.00016847,2]
[370012407,1751831438429,-500.0,0.00016847,2]
[370012408,1751831438439,-500.0,0.00016847,2]
[370012409,1751831438449,-500.0,0.00016847,2]
[370012410,1751831438459,-500.0,0.00016847,2]
[370012411,1751831438468,-329.02651694,0.00016847,2]
[370012412,1751831438494,-170.97348306,0.00016847,2]
[370012413,1751831438504,-500.0,0.00016847,2]
[370012414,1751831438514,-298.70852189,0.00016847,2]
[370012415,1751831438526,-212.91269063,0.00016847,2]
[370012416,1751831438536,-378.81158693,0.00016847,2]
[370012417,1751831438545,-329.31183873,0.00016847,2]
[370012418,1751831438556,-170.68816127,0.00016847,2]
[370012419,1751831438565,-153.88875907,0.00016847,2]
[370012420,1751831438576,-306.75134565,0.00016847,2]
[370012421,1751831438585,-500.0,0.00016847,2]
[370012422,1751831438595,-268.01179479,0.00016847,2]
[370012423,1751831438604,-500.0,0.00016847,2]
[370012424,1751831438613,-500.0,0.00016847,2]
[370012425,1751831438623,-500.0,0.00016847,2]
[370012426,1751831438634,-500.0,0.00016847,2]
[370012427,1751831438644,-500.0,0.00016847,2]
[370012428,1751831438653,-500.0,0.00016847,2]
[370012429,1751831438662,-500.0,0.00016847,2]
[370012430,1751831438671,-500.0,0.00016847,2]
[370012431,1751831438681,-500.0,0.00016847,2]
[370012432,1751831438690,-154.77067674,0.00016847,2]
[370012433,1751831438702,-500.0,0.00016847,2]
[370012434,1751831438711,-500.0,0.00016847,2]
[370012435,1751831438720,-500.0,0.00016847,2]
[370012436,1751831438730,-500.0,0.00016847,2]
[370012437,1751831438739,-500.0,0.00016847,2]
[370012438,1751831438748,-500.0,0.00016847,2]
[370012439,1751831438757,-500.0,0.00016847,2]
[370012440,1751831438767,-316.99839478,0.00016847,2]
[370012441,1751831438776,-500.0,0.00016847,2]
[370012442,1751831438785,-500.0,0.00016847,2]
[370012443,1751831438795,-500.0,0.00016847,2]
[370012444,1751831438804,-500.0,0.00016847,2]
[370012445,1751831438813,-275.08824072,0.00016847,2]
[370012446,1751831438822,-1200.0,0.00016848,2]
[370012447,1751831438831,-460.0,0.00016849,2]
[370012448,1751831438840,-460.0,0.00016849,2]
[370012449,1751831438849,-1443.86,0.00016849,2]
[370012450,1751831438858,-25574.57530863,0.00016849,2]
[370012451,1751831438868,-460.0,0.0001685,2]
[370012452,1751831438877,-377.23284465,0.00016851,2]
[370012453,1751831438889,-82.76715535,0.00016851,2]
[370012454,1751831438898,-1697.54,0.00016851,2]
[370012455,1751831438908,-1655.09,0.00016851,2]
[370012456,1751831438917,-189.91948254,0.00016851,2]
[370012457,1751831438941,-270.08051746,0.00016851,2]
[370012458,1751831438950,-460.0,0.00016851,2]
[370012459,1751831438959,-460.0,0.00016851,2]
[370012460,1751831438968,-1928.67,0.00016851,2]
[370012461,1751831438978,-1411.58,0.00016851,2]
[370012462,1751831438987,-2087.33,0.00016851,2]
[370012463,1751831438996,-460.0,0.00016851,2]
[370012464,1751831439004,-460.0,0.00016851,2]
[370012465,1751831439014,-1215.62,0.00016851,2]
[370012466,1751831439023,-460.0,0.00016851,2]
[370012467,1751831439032,-460.0,0.00016851,2]
[370012468,1751831439041,-460.0,0.00016851,2]
[370012469,1751831439050,-460.0,0.00016851,2]
[370012470,1751831439059,-1121.29,0.00016851,2]
[370012471,1751831439068,-824.15,0.00016851,2]
[370012472,1751831439078,-550.03,0.00016851,2]
[370012473,1751831439087,-460.0,0.00016852,2]
[370012474,1751831439096,-460.0,0.00016852,2]
[370012475,1751831439105,-460.0,0.00016852,2]
[370012476,1751831439114,-460.0,0.00016852,2]
[370012477,1751831439123,-460.0,0.00016852,2]
[370012478,1751831439133,-460.0,0.00016852,2]
[370012479,1751831439142,-460.0,0.00016853,2]
[370012480,1751831439151,-460.0,0.00016853,2]
[370012481,1751831439161,-460.0,0.00016853,2]
[370012482,1751831439170,-460.0,0.00016853,2]
[370012483,1751831439179,-460.0,0.00016853,2]
[370012484,1751831439188,-361.61130644,0.00016853,2]
[370012485,1751831439197,-460.0,0.00016853,2]
[370012486,1751831439206,-460.0,0.00016853,2]
[370012487,1751831439215,-460.0,0.00016853,2]
[370012488,1751831439225,-528.99,0.00016853,2]
[370012489,1751831439235,-460.0,0.00016853,2]
[370012490,1751831439244,-460.0,0.00016853,2]
[370012491,1751831439254,-460.0,0.00016853,2]
[370012492,1751831439264,-1958.82,0.00016853,2]
[370012493,1751831439274,-460.0,0.00016853,2]
[370012494,1751831439284,-460.0,0.00016853,2]
[370012495,1751831439294,-460.0,0.00016853,2]
[370012496,1751831439303,-460.0,0.00016853,2]
[370012497,1751831439312,-460.0,0.00016853,2]
[370012498,1751831439321,-460.0,0.00016853,2]
[370012499,1751831439330,-460.0,0.00016853,2]
[370012500,1751831439340,-460.0,0.00016853,2]
[370012501,1751831439349,-460.0,0.00016853,2]
[370012502,1751831439360,-460.0,0.00016853,2]
[370012503,1751831439370,-504.35,0.00016853,2]
[370012504,1751831439379,-460.0,0.00016853,2]
[370012505,1751831439388,-460.0,0.00016853,2]
[370012506,1751831439397,-560.92994817,0.00016853,2]
[370012507,1751831439407,-460.0,0.00016853,2]
[370012508,1751831439416,-460.0,0.00016853,2]
[370012509,1751831439426,-460.0,0.00016853,2]
[370012510,1751831439436,-460.0,0.00016853,2]
[370012511,1751831439445,-488.02,0.00016853,2]
[370012512,1751831439454,-460.0,0.00016854,2]
[370012513,1751831439464,-460.0,0.00016854,2]
[370012514,1751831439473,-500.0,0.00016854,2]
[370012515,1751831439482,-460.0,0.00016854,2]
[370012516,1751831439492,-481.11,0.00016854,2]
[370012517,1751831439501,-3155.25,0.00016854,2]
[370012518,1751831439510,-944.05,0.00016854,2]
[370012519,1751831439520,-557.7415749,0.00016854,2]
[370012520,1751831439529,-793.72,0.00016854,2]
[370012521,1751831439538,-460.0,0.00016854,2]
[370012522,1751831439547,-1079.66,0.00016854,2]
[370012523,1751831439557,-460.0,0.00016854,2]
[370012524,1751831439565,-460.0,0.00016855,2]
[370012525,1751831439575,-460.0,0.00016855,2]
[370012526,1751831439584,-460.0,0.00016855,2]
[370012527,1751831439593,-460.0,0.00016855,2]
[370012528,1751831439602,-502.08,0.00016855,2]
[370012529,1751831439612,-460.0,0.00016855,2]
[370012530,1751831439621,-460.0,0.00016855,2]
[370012531,1751831439630,-460.0,0.00016855,2]
[370012532,1751831439639,-460.0,0.00016855,2]
[370012533,1751831439649,-634.58,0.00016855,2]
[370012534,1751831439658,-460.0,0.00016855,2]
[370012535,1751831439667,-460.0,0.00016855,2]
[370012536,1751831439676,-460.0,0.00016855,2]
[370012537,1751831439686,-460.0,0.00016855,2]
[370012538,1751831439695,-549.65639665,0.00016855,2]
[370012539,1751831439705,-1812.59,0.00016855,2]
[370012540,1751831439714,-460.0,0.00016855,2]
[370012541,1751831439723,-460.0,0.00016855,2]
[370012542,1751831439733,-460.0,0.00016855,2]
[370012543,1751831439743,-460.0,0.00016855,2]
[370012544,1751831439753,-460.0,0.00016855,2]
[370012545,1751831439762,-460.0,0.00016855,2]
[370012546,1751831439771,-460.0,0.00016855,2]
[370012547,1751831439781,-1075.83,0.00016855,2]
[370012548,1751831439790,-460.0,0.00016855,2]
[370012549,1751831439800,-3249.22,0.00016855,2]
[370012550,1751831439810,-930.0,0.00016855,2]
[370012551,1751831439821,-1000.0,0.00016857,2]
[370012552,1751831439831,-1000.0,0.00016857,2]
[370012553,1751831439841,-1000.0,0.00016857,2]
[370012554,1751831439851,-1000.0,0.00016857,2]
[370012555,1751831439861,-1000.0,0.00016857,2]
[370012556,1751831439871,-1000.0,0.00016857,2]
[370012558,1751831439880,-1000.0,0.00016857,2]
[370012559,1751831439890,-1000.0,0.00016857,2]
[370012561,1751831439899,-1000.0,0.00016857,2]
[370012564,1751831439908,-1000.0,0.00016857,2]
[370012565,1751831439919,-1000.0,0.00016857,2]
[370012566,1751831439929,-1000.0,0.00016857,2]
[370012567,1751831439939,-1000.0,0.00016857,2]
[370012568,1751831439948,-1000.0,0.00016857,2]
[370012569,1751831439957,-604.35153215,0.00016857,2]
[370012570,1751831439966,-460.0,0.00016858,2]
[370012571,1751831439976,-460.0,0.00016858,2]
[370012572,1751831439986,-500.0,0.00016858,2]
[370012573,1751831440000,-500.0,0.00016881,2]
[370012574,1751831440012,-500.0,0.00016909,2]
[370012575,1751831440022,-500.0,0.00016936,2]
[370012576,1751831440031,-500.0,0.00016964,2]
[370012578,1751831440041,-500.0,0.00016991,2]
[370012580,1751831440050,-500.0,0.00017018,2]
[370012582,1751831440059,-500.0,0.00017046,2]
[370012584,1751831440068,-500.0,0.00017073,2]
[370012585,1751831440079,-500.0,0.00017101,2]
[370012586,1751831440088,-550.52,0.0001712,3]
[370012587,1751831440098,-460.0,0.00017123,2]
[370012588,1751831440107,-460.0,0.00017123,2]
[370012589,1751831440117,-1443.86,0.00017123,2]
[370012590,1751831440126,-460.0,0.00017124,2]
[370012591,1751831440137,-460.0,0.00017125,2]
[370012592,1751831440146,-1697.54,0.00017125,2]
[370012593,1751831440155,-1655.09,0.00017125,2]
[370012594,1751831440167,-460.0,0.00017125,2]
[370012595,1751831440177,-460.0,0.00017125,2]
[370012596,1751831440186,-471.8,0.00017125,2]
[370012597,1751831440195,-1928.67,0.00017125,2]
[370012598,1751831440204,-1411.58,0.00017125,2]
[370012599,1751831440214,-2087.33,0.00017125,2]
[370012600,1751831440223,-460.0,0.00017125,2]
[370012601,1751831440233,-1215.62,0.00017125,2]
[370012602,1751831440242,-460.0,0.00017125,2]
[370012603,1751831440252,-460.0,0.00017125,2]
[370012604,1751831440262,-460.0,0.00017125,2]
[370012605,1751831440271,-460.0,0.00017125,2]
[370012606,1751831440280,-1121.29,0.00017125,2]
[370012607,1751831440290,-824.15,0.00017125,2]
[370012608,1751831440299,-382.31340863,0.00017126,2]
[370012609,1751831440309,-460.0,0.00017126,2]
[370012610,1751831440318,-460.0,0.00017127,2]
[370012611,1751831440328,-528.2,0.00017127,2]
[370012612,1751831440337,-460.0,0.00017127,2]
[370012613,1751831440479,-365.65793655,0.00017127,2]
[370012614,1751831440489,-460.0,0.00017127,2]
[370012615,1751831440499,-528.99,0.00017127,2]
[370012616,1751831440509,-460.0,0.00017127,2]
[370012617,1751831440518,-460.0,0.00017127,2]
[370012618,1751831440527,-460.0,0.00017127,2]
[370012619,1751831440537,-1958.82,0.00017127,2]
[370012620,1751831440546,-460.0,0.00017127,2]
[370012621,1751831440555,-460.0,0.00017127,2]
[370012622,1751831440565,-528.16248342,0.00017127,2]
[370012623,1751831440574,-460.0,0.00017127,2]
[370012624,1751831440584,-460.0,0.00017127,2]
[370012625,1751831440594,-460.0,0.00017127,2]
[370012626,1751831440603,-460.0,0.00017127,2]
[370012627,1751831440612,-387.82918043,0.00017127,2]
[370012628,1751831440623,-504.35,0.00017127,2]
[370012629,1751831440633,-460.0,0.00017127,2]
[370012630,1751831440644,-460.0,0.00017127,2]
[370012631,1751831440653,-460.0,0.00017127,2]
[370012632,1751831440663,-460.0,0.00017127,2]
[370012633,1751831440672,-460.0,0.00017127,2]
[370012634,1751831440681,-488.02,0.00017127,2]
[370012635,1751831440691,-540.25372814,0.00017128,2]
[370012636,1751831440700,-460.0,0.00017128,2]
[370012637,1751831440709,-460.0,0.00017128,2]
[370012638,1751831440719,-481.11,0.00017128,2]
[370012639,1751831440728,-3155.25,0.00017128,2]
[370012640,1751831440738,-944.05,0.00017128,2]
[370012641,1751831440748,-793.72,0.00017128,2]
[370012642,1751831440757,-460.0,0.00017128,2]
[370012643,1751831440766,-1079.66,0.00017128,2]
[370012644,1751831440775,-460.0,0.00017128,2]
[370012645,1751831440785,-460.0,0.00017129,2]
[370012646,1751831440796,-460.0,0.00017129,2]
[370012647,1751831440805,-460.0,0.00017129,2]
[370012648,1751831440815,-502.08,0.00017129,2]
[370012649,1751831440824,-460.0,0.00017129,2]
[370012650,1751831440834,-460.0,0.00017129,2]
[370012651,1751831440843,-460.0,0.00017129,2]
[370012652,1751831440853,-460.0,0.00017129,2]
[370012653,1751831440862,-634.58,0.00017129,2]
[370012654,1751831440871,-460.0,0.00017129,2]
[370012655,1751831440881,-460.0,0.00017129,2]
[370012656,1751831440892,-460.0,0.00017129,2]
[370012657,1751831440903,-341.75,0.00017129,2]
[370012658,1751831440912,-1812.59,0.00017129,2]
[370012659,1751831440922,-460.0,0.00017129,2]
[370012660,1751831440931,-460.0,0.00017129,2]
[370012661,1751831440940,-460.0,0.00017129,2]
[370012662,1751831440950,-460.0,0.00017129,2]
[370012663,1751831440960,-460.0,0.00017129,2]
[370012664,1751831440970,-460.0,0.00017129,2]
[370012665,1751831440980,-460.0,0.00017129,2]
[370012666,1751831440991,-1075.83,0.00017129,2]
[370012667,1751831441001,-460.0,0.00017129,2]
[370012668,1751831441010,-3249.22,0.00017129,2]
[370012669,1751831441019,-930.0,0.00017129,2]
[370012670,1751831441028,-460.0,0.00017132,2]
[370012671,1751831441038,-500.0,0.00017132,2]